bitfinex-derivatives/quotes_BTCF0:USTF0_20241003
["timestamp","ask_amount","ask_price","bid_price","bid_amount"]
[1727975900151,0.00248227,60451.0,60450.0,0.082717]
[1727975900555,0.08519727,60451.0,60450.0,0.082717]
[1727975900750,0.00248227,60451.0,60450.0,0.082717]
[1727975900952,0.082699,60463.0,60454.0,0.082711]
[1727975901149,0.082695,60466.0,60465.0,0.082696]
[1727975901853,0.082695,60466.0,60464.0,0.082696]
[1727975902054,0.082695,60466.0,60465.0,0.082696]
[1727975902253,0.093695,60466.0,60465.0,0.082696]
[1727975902561,0.107695,60466.0,60465.0,0.082696]
[1727975902955,0.093695,60466.0,60465.0,0.082696]
[1727975903157,0.101695,60466.0,60465.0,0.082696]
[1727975903460,0.082701,60462.0,60461.0,0.082701]
[1727975904057,0.29,60462.0,60446.0,0.1164]
[1727975904260,0.082707,60458.0,60457.0,0.082707]
[1727975905062,0.292,60462.0,60461.0,0.082702]
[1727975905063,0.084701,60462.0,60461.0,0.082702]
[1727975905452,0.082701,60462.0,60461.0,0.082702]
[1727975906067,0.082701,60462.0,60456.0,0.082707]
[1727975906068,0.082707,60457.0,60456.0,0.082707]
[1727975907459,0.294,60462.0,60450.0,0.7216]
[1727975907460,0.082703,60460.0,60459.0,0.082703]
[1727975907957,0.191898,60466.0,60459.0,0.082703]
[1727975908162,0.082712,60454.0,60453.0,0.08271]
[1727975908549,0.004,60457.0,60453.0,0.08271]
[1727975908550,0.004,60457.0,60456.0,0.082708]
[1727975908963,0.009,60460.0,60459.0,0.082704]
[1727975909560,0.003,60460.0,60459.0,0.082704]
[1727975910358,0.0827,60463.0,60459.0,0.082704]
[1727975910757,0.082703,60460.0,60459.0,0.082704]
[1727975911262,0.08271,60456.0,60455.0,0.082709]
[1727975912270,0.021,60460.0,60459.0,0.082704]
[1727975912564,0.091703,60460.0,60459.0,0.082704]
[1727975913762,0.082703,60460.0,60459.0,0.082704]
[1727975914660,0.005,60460.0,60459.0,0.082704]
[1727975914863,0.011,60460.0,60459.0,0.082704]
[1727975915053,0.093703,60460.0,60459.0,0.082704]
[1727975915455,0.087703,60460.0,60459.0,0.082704]
[1727975915655,0.095703,60460.0,60459.0,0.082704]
[1727975917166,0.013,60460.0,60459.0,0.082704]
[1727975917377,0.013,60460.0,60459.0,0.443504]
[1727975917558,0.00248147,60469.0,60459.0,1.457]
[1727975917759,0.082679,60478.0,60468.0,0.3608]
[1727975917967,0.118,60488.0,60481.0,0.082673]
[1727975918162,0.118,60488.0,60477.0,0.082679]
[1727975918163,0.14020896,60488.0,60477.0,0.082679]
[1727975918360,0.082681,60477.0,60473.0,0.082684]
[1727975918572,0.29,60486.0,60473.0,0.082684]
[1727975918775,0.082683,60475.0,60468.0,0.3608]
[1727975918958,0.082683,60475.0,60473.0,0.082684]
[1727975919162,0.082684,60474.0,60473.0,0.082684]
[1727975920573,0.009,60477.0,60476.0,0.082681]
[1727975921562,0.19952537,60488.0,60476.0,0.082681]
[1727975921762,0.082669,60485.0,60484.0,0.082666]
[1727975921962,0.008,60477.0,60476.0,0.083681]
[1727975922367,0.09968,60477.0,60476.0,0.002]
[1727975922562,1.19576,60477.0,60476.0,0.002]
[1727975922778,1.24607641,60477.0,60476.0,0.001]
[1727975922970,2.74607641,60477.0,60476.0,0.001]
[1727975923176,2.81394602,60477.0,60476.0,0.001]
[1727975923371,2.80594602,60477.0,60476.0,0.001]
[1727975923578,2.81494602,60477.0,60476.0,0.002]
[1727975923772,0.082688,60471.0,60470.0,0.082688]
[1727975924975,0.082688,60471.0,60454.0,0.08271]
[1727975924976,0.082696,60466.0,60454.0,0.08271]
[1727975925171,0.082696,60466.0,60465.0,0.082696]
[1727975925681,0.082696,60466.0,60456.0,0.1165]
[1727975925873,0.372701,60462.0,60461.0,0.082699]
[1727975926791,0.05931641,60464.0,60461.0,0.082699]
[1727975926977,0.007,60466.0,60465.0,0.082696]
[1727975928272,0.082691,60469.0,60468.0,0.082692]
[1727975929079,0.082696,60467.0,60466.0,0.082693]
[1727975929276,0.082693,60468.0,60467.0,0.082691]
[1727975929683,0.002,60466.0,60465.0,0.443496]
[1727975929879,0.002,60466.0,60465.0,0.733496]
[1727975930176,0.002,60466.0,60465.0,1.829656]
[1727975930374,0.008,60469.0,60468.0,0.082692]
[1727975931673,0.006,60469.0,60468.0,0.083692]
[1727975932277,0.002,60469.0,60466.0,0.1119]
[1727975932479,0.002,60469.0,60468.0,0.082692]
[1727975933275,0.082683,60475.0,60474.0,0.082684]
[1727975935279,0.733459,60493.0,60472.0,0.29]
[1727975935579,0.733459,60493.0,60481.0,0.082674]
[1727975935580,0.08515391,60482.0,60481.0,0.082674]
[1727975935880,0.00248091,60482.0,60481.0,0.082674]
[1727975936081,0.06179454,60482.0,60481.0,0.082674]
[1727975936284,0.14446754,60482.0,60481.0,0.082674]
[1727975936482,0.15046754,60482.0,60481.0,0.082674]
[1727975936780,0.10415391,60482.0,60481.0,0.083674]
[1727975937377,0.10415391,60482.0,60481.0,0.001]
[1727975937787,0.10415391,60482.0,60481.0,0.083674]
[1727975938083,0.10415391,60482.0,60481.0,0.084674]
[1727975938084,0.11215391,60482.0,60481.0,0.084674]
[1727975938288,0.02948091,60482.0,60481.0,0.084674]
[1727975939780,0.11215391,60482.0,60481.0,0.002]
[1727975939979,0.17146754,60482.0,60481.0,0.00180001]
[1727975940778,0.17146754,60482.0,60464.0,0.311]
[1727975940779,0.08269,60470.0,60469.0,0.082688]
[1727975940982,0.14200363,60470.0,60469.0,0.082688]
[1727975941285,0.0827,60464.0,60463.0,0.082696]
[1727975941485,0.0827,60464.0,60458.0,0.3608]
[1727975941486,0.082704,60459.0,60458.0,0.3608]
[1727975941679,0.14201763,60459.0,60458.0,0.443506]
[1727975942281,0.14201763,60459.0,60451.0,0.55304]
[1727975942282,0.082714,60452.0,60451.0,0.084955]
[1727975942482,0.14202763,60452.0,60451.0,0.082715]
[1727975942778,0.14202763,60452.0,60441.0,0.36304]
[1727975942779,0.05931363,60452.0,60441.0,0.36304]
[1727975942983,0.082721,60447.0,60446.0,0.082722]
[1727975943178,0.14203463,60447.0,60446.0,0.082722]
[1727975943389,0.05931363,60447.0,60446.0,0.272722]
[1727975943791,0.05931363,60447.0,60446.0,0.372722]
[1727975943993,0.05931363,60452.0,60451.0,0.082715]
[1727975944179,0.26377111,60453.0,60452.0,0.082714]
[1727975944384,0.02481477,60459.0,60458.0,0.082706]
[1727975944684,0.082711,60454.0,60447.0,0.1239]
[1727975944992,0.001,60452.0,60451.0,0.088715]
[1727975945189,0.083714,60452.0,60451.0,0.006]
[1727975945692,0.082715,60451.0,60450.0,0.082716]
[1727975946581,0.001,60452.0,60441.0,0.38295547]
[1727975946789,0.001,60452.0,60451.0,0.082715]
[1727975948885,0.002,60452.0,60451.0,0.090715]
[1727975949301,0.001,60452.0,60451.0,0.090715]
[1727975950088,0.002,60452.0,60451.0,0.096715]
[1727975950488,0.002,60452.0,60451.0,0.457515]
[1727975950691,0.00248201,60460.0,60459.0,0.082704]
[1727975952094,0.08818501,60460.0,60459.0,0.082704]
[1727975952694,0.082706,60458.0,60457.0,0.443507]
[1727975953082,0.00348201,60460.0,60457.0,0.3608]
[1727975953282,0.08918601,60460.0,60459.0,0.082704]
[1727975953689,0.08918601,60460.0,60451.0,0.36304]
[1727975953993,0.082713,60455.0,60454.0,0.08271]
[1727975954595,0.02888905,60460.0,60451.0,0.3608]
[1727975954792,0.11559205,60460.0,60459.0,0.001]
[1727975955186,0.082714,60452.0,60451.0,0.3608]
[1727975956597,0.086714,60452.0,60451.0,0.3608]
[1727975956901,0.11782645,60452.0,60451.0,0.3618]
[1727975957984,0.12582645,60452.0,60451.0,0.3628]
[1727975958294,0.12582645,60452.0,60451.0,0.002]
[1727975959087,0.12682645,60452.0,60451.0,0.002]
[1727975959291,1.22310645,60452.0,60451.0,0.002]
[1727975959689,0.082732,60440.0,60439.0,0.082732]
[1727975960097,0.082732,60440.0,60435.0,0.48394]
[1727975960300,0.04311245,60452.0,60436.0,0.082736]
[1727975960301,0.082736,60437.0,60436.0,0.082736]
[1727975960799,0.082732,60439.0,60438.0,0.082733]
[1727975961197,0.082736,60436.0,60435.0,0.449537]
[1727975961394,0.082732,60439.0,60438.0,0.082733]
[1727975961799,0.082732,60439.0,60438.0,0.084733]
[1727975962486,0.087732,60439.0,60438.0,0.083733]
[1727975962689,0.04632849,60439.0,60438.0,0.083733]
[1727975962893,0.04632849,60439.0,60438.0,0.084733]
[1727975962894,0.05132849,60439.0,60438.0,0.084733]
[1727975963490,0.01,60439.0,60438.0,0.084733]
[1727975963694,0.01,60439.0,60438.0,0.085733]
[1727975963695,0.005,60439.0,60438.0,0.085733]
[1727975964503,0.082718,60450.0,60449.0,0.082716]
[1727975964697,0.082713,60453.0,60452.0,0.082713]
[1727975965393,0.082713,60453.0,60446.0,0.1161]
[1727975965394,0.44351,60456.0,60455.0,0.08271]
[1727975966796,0.082698,60464.0,60455.0,0.08271]
[1727975966797,0.3608,60465.0,60455.0,0.08271]
[1727975966997,0.3608,60465.0,60456.0,0.082708]
[1727975967196,0.082708,60457.0,60456.0,0.082708]
[1727975968592,0.082708,60456.0,60454.0,0.08271]
[1727975968791,0.082708,60456.0,60450.0,0.06536931]
[1727975968792,0.004,60457.0,60453.0,0.082711]
[1727975968999,0.082711,60454.0,60453.0,0.082711]
[1727975969603,0.012,60457.0,60452.0,0.06536931]
[1727975969804,0.094707,60457.0,60456.0,0.082708]
[1727975970190,0.089707,60457.0,60456.0,0.082708]
[1727975971097,0.086707,60457.0,60456.0,0.082708]
[1727975971504,0.082704,60459.0,60454.0,0.082711]
[1727975971818,0.098707,60457.0,60456.0,0.002]
[1727975972499,0.098707,60457.0,60456.0,0.001]
[1727975972500,0.092707,60457.0,60456.0,0.001]
[1727975972699,0.08271,60455.0,60454.0,0.084711]
[1727975973306,0.008,60459.0,60454.0,0.001]
[1727975973609,0.090707,60457.0,60456.0,0.083708]
[1727975974113,0.008,60457.0,60456.0,0.273708]
[1727975974605,0.05933318,60464.0,60460.0,0.082703]
[1727975974907,0.082692,60468.0,60464.0,0.082697]
[1727975975098,0.02229378,60471.0,60464.0,0.082697]
[1727975975299,0.443486,60473.0,60472.0,0.082687]
[1727975975495,0.082686,60473.0,60472.0,0.082687]
[1727975976610,0.096686,60473.0,60472.0,0.083687]
[1727975976807,0.014,60473.0,60472.0,0.083687]
[1727975977801,0.021,60473.0,60472.0,0.084687]
[1727975978206,0.07176622,60473.0,60472.0,0.084687]
[1727975978809,0.06476622,60473.0,60472.0,0.084687]
[1727975979708,0.06476622,60473.0,60472.0,0.274687]
[1727975979911,0.05932632,60486.0,60485.0,0.082669]
[1727975980106,0.05932632,60486.0,60473.0,0.082685]
[1727975980107,0.082664,60489.0,60483.0,0.19]
[1727975980308,0.10533143,60489.0,60483.0,0.19]
[1727975980511,0.082665,60488.0,60487.0,0.082665]
[1727975980711,0.082665,60488.0,60483.0,0.19]
[1727975980712,0.14198732,60491.0,60489.0,0.082662]
[1727975981014,0.082662,60490.0,60489.0,0.082662]
[1727975981318,0.082667,60487.0,60486.0,0.082667]
[1727975981510,0.082667,60486.0,60485.0,0.001]
[1727975982208,0.082667,60486.0,60483.0,0.001]
[1727975982209,0.08267,60484.0,60483.0,0.001]
[1727975982409,0.08267,60484.0,60476.0,0.08268]
[1727975982410,0.082681,60477.0,60476.0,0.08268]
[1727975982611,0.272681,60477.0,60476.0,0.08268]
[1727975982803,0.197572,60483.0,60480.0,0.082676]
[1727975982804,0.272675,60481.0,60480.0,0.082676]
[1727975983309,0.272675,60481.0,60469.0,0.1212]
[1727975983310,0.082683,60475.0,60474.0,0.082683]
[1727975984118,0.007,60486.0,60471.0,0.29]
[1727975984414,0.082668,60486.0,60485.0,0.082669]
[1727975984718,0.082663,60489.0,60482.0,0.082673]
[1727975984719,0.082672,60483.0,60482.0,0.082673]
[1727975986305,0.091672,60483.0,60482.0,0.083673]
[1727975987417,0.094672,60483.0,60482.0,0.084673]
[1727975987606,0.012,60483.0,60482.0,0.084673]
[1727975991521,0.012,60483.0,60482.0,0.374673]
[1727975991817,0.01,60483.0,60482.0,1.831473]
[1727975992813,0.009,60483.0,60482.0,1.831473]
[1727975993521,0.009,60483.0,60482.0,1.85463874]
[1727975993708,0.002,60483.0,60482.0,1.85363874]
[1727975993908,0.007,60483.0,60482.0,1.85463874]
[1727975994418,0.007,60483.0,60482.0,1.25463874]
[1727975995925,0.007,60483.0,60482.0,0.75863874]
[1727975996111,0.007,60483.0,60482.0,0.46863874]
[1727975996417,0.18490798,60483.0,60482.0,0.084673]
[1727975996620,0.26131308,60483.0,60477.0,0.13335025]
[1727975996920,0.33698708,60482.0,60481.0,0.082673]
[1727975997117,0.25431308,60482.0,60481.0,0.082673]
[1727975997423,0.20356164,60482.0,60481.0,0.082673]
[1727975998014,0.54878865,60482.0,60481.0,0.082673]
[1727975998617,0.54878865,60482.0,60481.0,0.373673]
[1727975998618,0.55278865,60482.0,60481.0,0.373673]
[1727975998911,0.55278865,60482.0,60481.0,1.469673]
[1727975998912,0.47638355,60482.0,60481.0,1.469673]
[1727975999321,0.55278865,60482.0,60481.0,1.469673]
[1727975999622,0.20756164,60482.0,60481.0,1.469673]
[1727976000134,0.21156164,60482.0,60481.0,1.470673]
[1727976000624,0.34522701,60486.0,60485.0,0.082669]
[1727976000825,0.34522701,60486.0,60485.0,0.682669]
[1727976001025,0.34522701,60486.0,60485.0,1.178669]
[1727976001414,0.26317625,60494.0,60493.0,0.082658]
[1727976001619,0.082648,60501.0,60493.0,0.29]
[1727976001831,0.443445,60503.0,60502.0,0.082646]
[1727976002529,0.51128982,60503.0,60502.0,0.082646]
[1727976003430,0.51128982,60503.0,60493.0,0.3135104]
[1727976003431,0.082651,60499.0,60493.0,0.3135104]
[1727976003626,0.082654,60496.0,60493.0,0.001]
[1727976003927,0.082656,60494.0,60493.0,0.001]
[1727976004123,0.6469912,60494.0,60493.0,0.001]
[1727976004324,0.082673,60483.0,60477.0,0.082679]
[1727976004522,0.082664,60489.0,60483.0,0.082671]
[1727976004523,0.08267,60484.0,60483.0,0.082671]
[1727976004721,0.08267,60484.0,60473.0,0.3608]
[1727976004722,0.082672,60483.0,60481.0,0.082673]
[1727976005019,0.082673,60482.0,60481.0,0.082673]
[1727976005221,0.08267,60484.0,60481.0,0.082673]
[1727976005427,0.082669,60485.0,60484.0,0.082669]
[1727976005724,0.1162,60488.0,60485.0,0.082668]
[1727976005930,0.082667,60486.0,60485.0,0.082668]
[1727976006129,0.1162,60488.0,60481.0,0.29]
[1727976006330,0.4843,60494.0,60481.0,0.372674]
[1727976006525,0.082658,60493.0,60492.0,0.082658]
[1727976006835,0.082658,60493.0,60485.0,0.082669]
[1727976006836,0.082654,60496.0,60495.0,0.082652]
[1727976007131,0.1215,60498.0,60497.0,0.082652]
[1727976008835,0.1215,60498.0,60491.0,0.372659]
[1727976008836,0.4753,60503.0,60502.0,0.082646]
[1727976008837,0.1145,60503.0,60502.0,0.082646]
[1727976009020,0.08512434,60504.0,60503.0,0.082644]
[1727976009021,0.00248034,60504.0,60503.0,0.082644]
[1727976009830,0.3608,60509.0,60508.0,0.082637]
[1727976010426,0.3608,60509.0,60505.0,0.082641]
[1727976010627,0.29,60506.0,60502.0,0.002]
[1727976010833,0.082644,60503.0,60502.0,0.001]
[1727976011225,0.37112182,60503.0,60491.0,0.19516151]
[1727976011432,0.082652,60498.0,60497.0,0.082652]
[1727976011731,0.28847782,60498.0,60497.0,0.082652]
[1727976012428,0.64927782,60498.0,60496.0,0.082653]
[1727976012632,0.28847782,60497.0,60496.0,0.082653]
[1727976013229,0.22918341,60497.0,60496.0,0.082653]
[1727976013733,0.08266,60492.0,60485.0,0.3608]
[1727976013938,0.08266,60492.0,60491.0,0.082661]
[1727976014130,0.31186631,60492.0,60491.0,0.082661]
[1727976014327,0.67266631,60492.0,60485.0,0.02281591]
[1727976014532,0.67266631,60492.0,60481.0,0.3242]
[1727976014533,0.082664,60489.0,60487.0,0.082665]
[1727976014730,0.31187131,60488.0,60487.0,0.082665]
[1727976015428,0.31187131,60488.0,60487.0,0.07439851]
[1727976015630,0.31187131,60488.0,60476.0,0.1253]
[1727976015631,0.08267,60485.0,60484.0,0.082669]
[1727976015832,0.082674,60482.0,60473.0,0.082685]
[1727976016140,0.082662,60490.0,60480.0,0.082676]
[1727976016141,0.22920631,60481.0,60480.0,0.082676]
[1727976016323,0.22920631,60481.0,60478.0,0.18065307]
[1727976016525,0.22920631,60480.0,60479.0,0.082677]
[1727976017831,0.22920631,60480.0,60479.0,0.086677]
[1727976018234,0.14425332,60480.0,60479.0,1.182717]
[1727976018731,0.14425332,60480.0,60479.0,1.188717]
[1727976019345,0.3608,60492.0,60489.0,0.082663]
[1727976019637,0.082662,60490.0,60489.0,0.082663]
[1727976020231,0.3608,60492.0,60491.0,0.082661]
[1727976021643,0.3618,60492.0,60491.0,0.082661]
[1727976022337,0.3608,60492.0,60491.0,0.082661]
[1727976022542,0.325655,60496.0,60489.0,0.001]
[1727976022837,0.003,60492.0,60491.0,0.083661]
[1727976023043,0.003,60492.0,60491.0,0.32279731]
[1727976023240,0.003,60492.0,60491.0,1.730381]
[1727976023445,0.3608,60505.0,60504.0,0.272643]
[1727976023639,0.10520738,60516.0,60514.0,0.082629]
[1727976023840,0.10520738,60516.0,60505.0,0.082641]
[1727976023841,0.10520738,60516.0,60515.0,0.082628]
[1727976024034,0.10520738,60516.0,60513.0,0.19]
[1727976024035,0.00247952,60518.0,60513.0,0.19]
[1727976024236,0.08510352,60518.0,60513.0,0.19]
[1727976024540,0.08510352,60518.0,60516.0,0.082625]
[1727976024944,0.00247952,60518.0,60517.0,0.082625]
[1727976025843,0.00247952,60518.0,60512.0,0.29]
[1727976026044,0.00347952,60518.0,60515.0,0.001]
[1727976026238,0.082625,60517.0,60515.0,0.083627]
[1727976026550,0.082625,60517.0,60516.0,0.082626]
[1727976026845,0.00347952,60518.0,60517.0,0.082625]
[1727976027540,0.08610352,60518.0,60517.0,0.082625]
[1727976027945,0.082629,60514.0,60513.0,0.08263]
[1727976028244,0.082637,60509.0,60506.0,0.08264]
[1727976028443,0.29,60513.0,60502.0,0.082644]
[1727976028642,0.29,60513.0,60496.0,0.3608]
[1727976028643,0.1201,60508.0,60496.0,0.3608]
[1727976028844,0.1201,60508.0,60505.0,0.082641]
[1727976028845,0.202738,60508.0,60505.0,0.082641]
[1727976029046,0.202738,60508.0,60498.0,0.29]
[1727976029047,0.1201,60508.0,60501.0,0.082647]
[1727976029247,0.1201,60508.0,60496.0,0.38292863]
[1727976029248,0.082644,60503.0,60500.0,0.082648]
[1727976029549,0.3608,60504.0,60503.0,0.082644]
[1727976031034,0.082657,60494.0,60491.0,0.08266]
[1727976031239,0.29,60495.0,60484.0,0.082669]
[1727976031445,0.082658,60493.0,60479.0,0.082677]
[1727976031645,0.29,60495.0,60479.0,0.082677]
[1727976031850,0.29,60495.0,60494.0,0.082656]
[1727976032739,0.29,60500.0,60484.0,0.014]
[1727976032942,0.1221,60503.0,60487.0,0.29]
[1727976033240,0.001,60495.0,60494.0,0.082656]
[1727976034351,0.3608,60510.0,60509.0,0.082636]
[1727976034549,0.3608,60510.0,60509.0,0.13170374]
[1727976035136,0.443435,60510.0,60509.0,0.13169015]
[1727976035341,0.3608,60510.0,60509.0,0.13169015]
[1727976035548,0.443435,60510.0,60509.0,0.13169015]
[1727976035745,0.443435,60510.0,60508.0,0.04905415]
[1727976035951,0.444435,60510.0,60508.0,0.04905415]
[1727976036249,0.444435,60510.0,60509.0,0.04905415]
[1727976036447,0.082636,60509.0,60508.0,0.04905415]
[1727976036650,0.082637,60508.0,60507.0,0.04905415]
[1727976037044,0.082637,60508.0,60507.0,0.13169315]
[1727976037353,0.082637,60508.0,60507.0,0.04905415]
[1727976037749,0.082637,60508.0,60500.0,0.02319476]
[1727976037750,0.082639,60507.0,60506.0,0.04905415]
[1727976037951,0.08264,60506.0,60505.0,0.04905415]
[1727976038153,0.082641,60505.0,60504.0,0.04905415]
[1727976038346,0.3608,60505.0,60503.0,0.04905415]
[1727976038540,0.3608,60505.0,60501.0,0.06542355]
[1727976038541,0.3608,60505.0,60498.0,0.06542355]
[1727976038749,0.3608,60505.0,60494.0,0.08185687]
[1727976038750,0.372646,60502.0,60501.0,0.082646]
[1727976040243,0.08265,60499.0,60498.0,0.13177519]
[1727976040546,0.08265,60499.0,60498.0,0.08265]
[1727976041757,0.08265,60499.0,60498.0,0.08565]
[1727976041950,0.08265,60499.0,60498.0,0.08665]
[1727976042352,0.08265,60499.0,60498.0,0.001]
[1727976042658,0.082652,60498.0,60479.0,0.3242]
[1727976042850,0.082652,60498.0,60480.0,0.082674]
[1727976042851,0.082676,60481.0,60480.0,0.082674]
[1727976043051,0.29,60483.0,60482.0,0.082673]
[1727976043556,0.082662,60490.0,60478.0,0.02287648]
[1727976043557,0.29,60488.0,60478.0,0.02287648]
[1727976043859,0.08267,60485.0,60484.0,0.082669]
[1727976045259,1.53947,60485.0,60484.0,0.007]
[1727976045455,0.082677,60479.0,60478.0,0.014]
[1727976045659,0.082673,60483.0,60482.0,0.082671]
[1727976046158,0.3608,60485.0,60484.0,0.08267]
[1727976046358,0.3608,60485.0,60484.0,0.37267]
[1727976046664,0.3608,60485.0,60484.0,0.08267]
[1727976048154,0.3608,60485.0,60484.0,0.08767]
[1727976048354,0.3608,60485.0,60484.0,0.08967]
[1727976048952,0.3608,60485.0,60484.0,0.08367]
[1727976049155,0.3608,60485.0,60484.0,0.08767]
[1727976049855,0.43140839,60498.0,60490.0,0.082662]
[1727976049856,0.3608,60491.0,60490.0,0.082662]
[1727976050366,0.082653,60497.0,60495.0,0.082655]
[1727976050553,0.02490839,60498.0,60485.0,0.082668]
[1727976050554,0.082659,60493.0,60485.0,0.082668]
[1727976050751,0.31490839,60498.0,60484.0,0.004]
[1727976050956,0.082658,60494.0,60492.0,0.082658]
[1727976051356,0.082658,60493.0,60492.0,0.082658]
[1727976051558,0.082658,60493.0,60484.0,0.191]
[1727976051751,0.082658,60493.0,60492.0,0.082659]
[1727976052768,0.002,60494.0,60493.0,0.082658]
[1727976053461,0.002,60494.0,60493.0,0.272658]
[1727976054066,0.006,60494.0,60493.0,0.272658]
[1727976054452,0.006,60494.0,60493.0,0.082658]
[1727976054656,0.001,60493.0,60486.0,0.082667]
[1727976054858,0.082664,60489.0,60488.0,0.082664]
[1727976055056,0.082664,60489.0,60478.0,0.3830319]
[1727976055264,0.19,60485.0,60478.0,0.3830319]
[1727976055465,0.082677,60479.0,60478.0,0.3608]
[1727976056165,0.08268,60477.0,60474.0,0.082683]
[1727976056471,0.08268,60477.0,60476.0,0.04912513]
[1727976056766,0.082681,60476.0,60475.0,0.04913692]
[1727976057066,0.082684,60474.0,60473.0,0.04913692]
[1727976057369,0.082684,60474.0,60473.0,0.04915073]
[1727976058058,0.082685,60473.0,60472.0,0.082686]
[1727976058966,0.083681,60476.0,60475.0,0.082682]
[1727976059564,0.3608,60477.0,60476.0,0.082681]
[1727976060166,0.1152,60489.0,60476.0,0.082681]
[1727976060364,0.1152,60489.0,60482.0,0.04912219]
[1727976060365,0.08267,60485.0,60482.0,0.04912219]
[1727976060556,0.08267,60484.0,60483.0,0.082671]
[1727976060958,0.082673,60482.0,60479.0,0.04912219]
[1727976061161,0.082673,60482.0,60481.0,0.082674]
[1727976061361,0.197864,60489.0,60477.0,0.04912219]
[1727976061362,0.3618,60486.0,60477.0,0.04912219]
[1727976061561,0.3618,60486.0,60485.0,0.082669]
[1727976061885,0.444467,60486.0,60485.0,0.082669]
[1727976062871,0.3618,60486.0,60485.0,0.372669]
[1727976063072,0.3608,60496.0,60495.0,0.082655]
[1727976063276,0.3608,60496.0,60495.0,0.372655]
[1727976063966,0.443437,60509.0,60502.0,0.082646]
[1727976064269,0.3608,60509.0,60508.0,0.082637]
[1727976065373,0.3628,60509.0,60508.0,0.082637]
[1727976066177,0.3628,60509.0,60508.0,0.083637]
[1727976066472,0.3698,60509.0,60508.0,0.083637]
[1727976067072,0.3688,60509.0,60508.0,0.084637]
[1727976067370,0.3688,60509.0,60508.0,0.069637]
[1727976067570,0.741436,60509.0,60508.0,0.069637]
[1727976067778,0.451436,60509.0,60508.0,0.069637]
[1727976067975,0.451436,60509.0,60508.0,0.002]
[1727976068773,0.451436,60509.0,60508.0,0.084637]
[1727976069165,0.451436,60509.0,60508.0,0.002]
[1727976069876,0.451436,60509.0,60502.0,0.082644]
[1727976069877,1.7546,60509.0,60480.0,0.3242]
[1727976070072,0.29,60492.0,60489.0,0.082663]
[1727976070371,0.3688,60509.0,60481.0,0.673994]
[1727976070372,0.29,60499.0,60481.0,0.673994]
[1727976071075,0.37265,60499.0,60495.0,0.082655]
[1727976071391,0.082653,60497.0,60486.0,0.29]
[1727976071570,0.082653,60497.0,60492.0,0.082659]
[1727976071571,0.082655,60496.0,60492.0,0.082659]
[1727976071762,0.082655,60496.0,60486.0,0.29]
[1727976071763,0.082653,60497.0,60494.0,0.082655]
[1727976071964,0.082653,60497.0,60494.0,0.082656]
[1727976072280,0.082659,60493.0,60490.0,0.082662]
[1727976072473,0.082659,60493.0,60492.0,0.082659]
[1727976072977,0.082661,60491.0,60482.0,0.04906917]
[1727976073177,0.082661,60491.0,60489.0,0.082663]
[1727976073377,0.082662,60490.0,60489.0,0.082663]
[1727976073574,0.082662,60490.0,60482.0,0.04906917]
[1727976073771,0.372658,60493.0,60492.0,0.004]
[1727976074376,0.372658,60493.0,60489.0,0.004]
[1727976074682,0.443458,60493.0,60492.0,0.082659]
[1727976075272,0.3648,60493.0,60492.0,0.083659]
[1727976076367,0.3728,60493.0,60492.0,0.084659]
[1727976077076,0.114,60504.0,60503.0,0.082644]
[1727976077077,0.443444,60504.0,60503.0,0.082644]
[1727976077274,0.443444,60504.0,60492.0,0.373659]
[1727976077275,0.3608,60504.0,60492.0,0.373659]
[1727976077472,0.082645,60503.0,60502.0,0.082645]
[1727976077680,0.3608,60504.0,60503.0,0.082644]
[1727976078274,0.3688,60504.0,60503.0,0.083644]
[1727976078781,0.3688,60504.0,60503.0,0.16550087]
[1727976078989,0.3688,60504.0,60503.0,0.083644]
[1727976079280,0.3688,60504.0,60503.0,0.16550087]
[1727976079486,0.3688,60504.0,60503.0,0.083644]
[1727976079677,0.3608,60504.0,60503.0,0.082644]
[1727976079874,0.31917322,60504.0,60503.0,0.20961476]
[1727976080179,0.008,60504.0,60503.0,0.20961476]
[1727976080480,0.011,60504.0,60503.0,0.23913181]
[1727976080785,0.011,60504.0,60503.0,0.36083181]
[1727976081375,0.3608,60517.0,60503.0,1.52734097]
[1727976081587,0.082612,60527.0,60516.0,0.5251198]
[1727976081883,0.082612,60527.0,60525.0,0.082613]
[1727976082072,0.1165,60531.0,60529.0,0.082608]
[1727976082273,0.44588398,60532.0,60529.0,0.13157772]
[1727976082474,0.44588398,60532.0,60520.0,0.29]
[1727976082475,0.36327898,60532.0,60531.0,0.082606]
[1727976082775,0.36327898,60532.0,60531.0,0.04896972]
[1727976083377,0.36327898,60532.0,60530.0,0.13157672]
[1727976083578,0.36327898,60532.0,60531.0,0.082606]
[1727976083579,0.36427898,60532.0,60531.0,0.082606]
[1727976084085,0.44688398,60532.0,60531.0,0.001]
[1727976084286,0.36427898,60532.0,60531.0,0.002]
[1727976084488,0.44688398,60532.0,60531.0,0.05089715]
[1727976085077,0.36427898,60532.0,60531.0,0.002]
[1727976085282,0.36427898,60532.0,60531.0,0.084606]
[1727976085582,0.00347898,60532.0,60531.0,0.084606]
[1727976086280,0.00347898,60532.0,60531.0,0.14990117]
[1727976086584,0.13053474,60532.0,60531.0,0.14990117]
[1727976086782,0.43207908,60532.0,60531.0,0.082606]
[1727976086988,0.49133518,60532.0,60531.0,0.082606]
[1727976087194,0.43207908,60532.0,60531.0,0.082606]
[1727976087579,0.3618,60532.0,60531.0,0.082606]